bitfinex/quotes_SOLUSD_20240725
["timestamp","ask_amount","ask_price","bid_price","bid_amount"]
[1721940119259,7.40703284,168.77,168.7,1.93799832]
[1721940119458,1.48181267,168.76,168.7,1.93799832]
[1721940120373,1.48181046,168.78,168.7,1.93799832]
[1721940120589,25.24640993,168.79,168.7,1.93799832]
[1721940120962,23.7648,168.78,168.7,1.93799832]
[1721940122175,19.32180931,168.81,168.7,1.93799832]
[1721940122371,25.24590931,168.81,168.71,1.18544745]
[1721940122578,17.84,168.81,168.7,1.93799832]
[1721940122970,25.24552914,168.81,168.7,1.93799832]
[1721940123170,5.9242,168.8,168.7,1.93799832]
[1721940123765,25.24532914,168.81,168.7,1.93799832]
[1721940125788,34.47455341,168.83,168.71,24.04786273]
[1721940125986,1.48139638,168.82,168.71,22.8627]
[1721940126355,7.40479638,168.82,168.71,22.8627]
[1721940126767,1.48139638,168.82,168.71,22.8627]
[1721940127586,1.4813295,168.81,168.71,22.8627]
[1721940127765,1.4813295,168.81,168.72,45.0]
[1721940127960,7.40385851,168.84,168.73,1.93765375]
[1721940128169,5.9231,168.83,168.73,1.93765375]
[1721940128367,1.48129766,168.82,168.73,1.93765375]
[1721940128663,1.48129683,168.82,168.73,1.93765375]
[1721940129783,19.32129873,168.85,168.73,1.93765375]
[1721940130769,17.84,168.82,168.73,1.93765375]
[1721940131088,5.9242,168.8,168.73,1.93765375]
[1721940131290,25.24532362,168.81,168.73,1.93765375]
[1721940131965,17.84,168.8,168.73,1.93765375]
[1721940132192,1.48168431,168.79,168.73,1.93765375]
[1721940132379,7.40618431,168.79,168.73,1.93765375]
[1721940132691,1.48168431,168.79,168.73,1.93765375]
[1721940132866,7.40618431,168.79,168.73,1.93765375]
[1721940133067,5.9245,168.79,168.73,1.93765375]
[1721940133400,1.48166503,168.79,168.73,1.93765375]
[1721940134369,25.24585451,168.8,168.73,1.93765375]
[1721940134572,23.7642,168.8,168.73,1.93765375]
[1721940134892,19.32165294,168.8,168.73,1.93765375]
[1721940135066,1.48165186,168.8,168.73,1.93765375]
[1721940135271,27.07,168.83,168.73,1.93765375]
[1721940135492,10.68657846,168.82,168.73,1.93765375]
[1721940135697,1.48142615,168.82,168.73,1.93765375]
[1721940135899,5.9235,168.82,168.73,1.93765375]
[1721940136198,5.9242,168.8,168.73,1.93765375]
[1721940136398,5.9246,168.79,168.73,1.93765375]
[1721940136699,25.24583699,168.8,168.73,1.93765375]
[1721940137495,19.32166859,168.82,168.73,1.93765375]
[1721940137699,17.84,168.8,168.73,1.93765375]
[1721940137870,17.84,168.77,168.71,22.8627]
[1721940138074,7.40776435,168.76,168.67,22.3908]
[1721940138273,7.40776435,168.76,168.68,1.9382281]
[1721940138482,1.48186435,168.76,168.68,1.9382281]
[1721940138682,25.2470104,168.77,168.68,1.9382281]
[1721940138882,1.4818104,168.75,168.68,1.9382281]
[1721940139080,1.48189967,168.76,168.68,1.9382281]
[1721940139389,7.40673929,168.78,168.68,1.9382281]
[1721940139898,25.24673929,168.78,168.68,1.9382281]
[1721940140096,7.40673929,168.78,168.68,1.9382281]
[1721940140402,1.48175022,168.81,168.68,48.12362827]
[1721940140593,35.19219654,168.82,168.68,48.12362827]
[1721940140899,10.68738637,168.81,168.69,20.0]
[1721940141102,1.48145192,168.8,168.7,1.93799832]
[1721940141296,10.68685058,168.81,168.7,1.93799832]
[1721940141615,25.24495313,168.82,168.7,1.93799832]
[1721940141905,10.68632633,168.81,168.7,1.93799832]
[1721940142079,1.48145155,168.8,168.7,1.93799832]
[1721940142396,1.48145349,168.79,168.7,1.93799832]
[1721940142786,1.48144691,168.78,168.7,1.93799832]
[1721940142987,23.7642,168.8,168.7,1.93799832]
[1721940143202,1.48162077,168.79,168.7,1.93799832]
[1721940143704,5.9245,168.79,168.7,1.93799832]
[1721940143892,25.24584405,168.8,168.7,1.93799832]
[1721940144080,16.61172934,168.79,168.7,1.93799832]
[1721940144395,17.84,168.78,168.7,1.93799832]
[1721940144576,5.9256,168.76,168.7,1.93799832]
[1721940144778,7.40749216,168.76,168.7,1.93799832]
[1721940145800,1.48189216,168.76,168.7,1.93799832]
[1721940146178,17.84,168.75,168.67,22.3908]
[1721940146398,7.40857748,168.74,168.67,22.3908]
[1721940146629,19.32212584,168.76,168.67,24.32914302]
[1721940146783,19.32212584,168.76,168.68,1.9382281]
[1721940148382,17.84,168.79,168.68,1.9382281]
[1721940148581,10.68864871,168.78,168.69,1.18539044]
[1721940148799,1.4816757,168.77,168.68,1.9382281]
[1721940149000,12.17010457,168.79,168.68,1.9382281]
[1721940149500,5.9249,168.78,168.68,1.9382281]
[1721940149683,16.61316019,168.78,168.68,1.9382281]
[1721940150597,5.9249,168.78,168.68,1.9382281]
[1721940150804,16.61275662,168.79,168.68,3.12364564]
[1721940151010,34.4758953,168.8,168.68,3.12364564]
[1721940151198,10.687661,168.79,168.68,23.12364564]
[1721940151501,34.4758953,168.8,168.68,23.12364564]
[1721940151705,10.68780967,168.79,168.68,23.12364564]
[1721940151899,16.61230967,168.79,168.68,21.9382281]
[1721940153105,10.68780967,168.79,168.68,23.1235491]
[1721940153285,17.55579874,168.84,168.71,6.1305]
[1721940153484,10.68558224,168.83,168.72,1.93776859]
[1721940153705,10.68558224,168.83,168.72,21.93776859]
[1721940153908,7.40419874,168.84,168.72,21.93776859]
[1721940153909,10.68550174,168.82,168.72,21.93776859]
[1721940154101,10.68550012,168.82,168.72,21.93776859]
[1721940154411,5.9241,168.8,168.72,21.93776859]
[1721940154616,7.40614109,168.79,168.72,1.93776859]
[1721940156108,17.0990827,168.81,168.72,1.93776859]
[1721940156309,10.68766837,168.8,168.72,1.93776859]
[1721940156488,5.9245,168.79,168.72,1.93776859]
[1721940156688,16.61186837,168.8,168.72,1.93776859]
[1721940156992,10.68766837,168.8,168.72,1.93776859]
[1721940157187,10.68766837,168.79,168.72,1.93776859]
[1721940157386,5.9242,168.8,168.72,1.93776859]
[1721940157913,5.9246,168.79,168.72,1.93776859]
[1721940158319,16.61226837,168.79,168.72,1.93776859]
[1721940158614,5.9246,168.79,168.72,1.93776859]
[1721940159002,16.61212935,168.79,168.72,1.93776859]
[1721940160114,10.68752935,168.79,168.72,1.93776859]
[1721940160313,13.51,168.78,168.72,16.63302535]
[1721940160518,32.13676779,168.87,168.74,13.51]
[1721940160519,17.09898024,168.83,168.74,13.51]
[1721940160707,29.86183856,168.87,168.74,13.51]
[1721940160708,13.51,168.79,168.74,13.51]
[1721940161400,13.51,168.78,168.73,13.51]
[1721940161921,13.51,168.79,168.74,13.51]
[1721940163702,17.09823128,168.82,168.75,1.9374241]
[1721940163898,13.51,168.8,168.75,15.4474241]
[1721940164118,13.51,168.81,168.75,15.4474241]
[1721940165209,17.0969553,168.84,168.76,30.0596]
[1721940165406,13.51,168.82,168.77,13.51]
[1721940166011,17.09634968,168.86,168.78,13.51]
[1721940166216,13.51,168.83,168.78,13.51]
[1721940167029,5.9216,168.88,168.79,15.44696497]
[1721940167199,13.51,168.86,168.8,13.51]
[1721940167399,5.9216,168.88,168.81,13.51]
[1721940167604,19.4317,168.87,168.81,13.51]
[1721940167804,10.68333122,168.86,168.81,13.51]
[1721940168334,10.68333122,168.86,168.79,15.44696497]
[1721940168623,13.51,168.86,168.8,13.51]
[1721940169146,14.2930015,168.9,168.85,13.51]
[1721940169433,0.7830015,168.9,168.85,13.51]
[1721940169603,14.2930015,168.9,168.85,13.51]
[1721940170710,0.7830015,168.9,168.85,13.51]
[1721940170913,14.2930015,168.9,168.85,13.51]
[1721940171329,13.51,168.89,168.81,16.089]
[1721940171610,13.51,168.88,168.83,13.51]
[1721940172031,6.7037015,168.9,168.84,13.51]
[1721940172323,14.2930015,168.9,168.85,13.51]
[1721940173043,13.51,168.89,168.84,13.51]
[1721940173744,13.51,168.89,168.84,15.44639136]
[1721940174633,13.51,168.89,168.84,1.93639136]
[1721940175214,13.51,168.89,168.84,15.44639136]
[1721940175831,14.2930015,168.9,168.85,13.51]
[1721940177351,0.7830015,168.9,168.87,13.51]
[1721940179041,0.7830015,168.9,168.86,1.93616201]
[1721940179945,0.7830015,168.9,168.86,16.63049893]
[1721940180124,0.7830015,168.9,168.87,13.51]
[1721940180523,13.51,168.88,168.86,1.93616201]
[1721940180738,5.9219,168.87,168.79,13.51]
[1721940181043,13.51,168.84,168.79,15.44696497]
[1721940181419,13.51,168.84,168.79,1.93696497]
[1721940181638,20.91417152,168.83,168.79,1.93696497]
[1721940181843,13.51,168.8,168.79,1.93696497]
[1721940182044,5.9247,168.79,168.68,1.18496254]
[1721940182340,5.9245,168.79,168.69,1.9381132]
[1721940182543,5.9242,168.8,168.69,1.9381132]
[1721940183342,1.4815253,168.79,168.69,1.9381132]
[1721940184037,1.48175014,168.85,168.71,27.02]
[1721940184345,19.32103229,168.85,168.72,23.12259442]
[1721940184555,19.32103229,168.85,168.73,1.93765375]
[1721940184844,5.9244,168.8,168.73,1.93765375]
[1721940186036,5.9238,168.81,168.73,1.93765375]
[1721940186224,5.9235,168.82,168.73,1.93765375]
[1721940187424,1.48151868,168.84,168.73,1.93765375]
[1721940187622,17.84,168.83,168.73,1.93765375]
[1721940187849,7.40489057,168.82,168.73,1.93765375]
[1721940188024,1.48149057,168.82,168.73,1.93765375]
[1721940188334,7.40499057,168.82,168.73,3.12286386]
[1721940188537,7.40464709,168.83,168.73,1.93765375]
[1721940189238,5.9235,168.82,168.73,1.93765375]
[1721940189536,5.9232,168.83,168.74,1.18515781]
[1721940189719,5.9232,168.83,168.71,27.02]
[1721940189720,1.48144727,168.85,168.75,1.9374241]
[1721940190233,23.98745842,168.86,168.76,1.18492673]
[1721940190441,16.2642,168.86,168.76,23.83540929]
[1721940190638,1.48093574,168.88,168.77,1.9371945]
[1721940191024,7.40233574,168.88,168.77,1.9371945]
[1721940191756,1.48093574,168.88,168.77,21.9371945]
[1721940191926,1.48075599,168.89,168.77,21.9371945]
[1721940192128,56.4690015,168.9,168.77,21.9371945]
[1721940192338,7.4018158,168.89,168.77,21.9371945]
[1721940193037,7.4019158,168.89,168.77,21.9371945]
[1721940193541,0.7830015,168.9,168.77,50.14181535]
[1721940194048,1.4806321,168.89,168.77,48.9571945]
[1721940194443,7.4017321,168.89,168.77,48.9571945]
[1721940194642,1.4806321,168.89,168.77,50.14177598]
[1721940194955,7.4016321,168.89,168.77,48.9571945]
[1721940195458,17.84,168.89,168.77,50.14178177]
[1721940195646,17.84,168.89,168.77,21.9371945]
[1721940195647,5.9227,168.84,168.77,21.9371945]
[1721940195837,32.6429,168.89,168.77,1.9371945]
[1721940196044,23.9126,168.81,168.77,1.9371945]
[1721940196268,23.7648,168.78,168.77,1.9371945]
[1721940196441,5.9273,168.71,168.7,60.0]
[1721940196636,23.7673,168.71,168.7,60.0]
[1721940197137,45.24957501,168.71,168.7,60.0]
[1721940197748,7.88063437,168.71,168.7,60.0]
[1721940198143,3.43547149,168.71,168.7,60.0]
[1721940198352,9.36277149,168.71,168.7,60.0]
[1721940198853,7.88063437,168.71,168.7,60.0]
[1721940199056,9.36277102,168.71,168.7,60.0]
[1721940199437,7.88063437,168.71,168.7,60.0]
[1721940200762,1.95333437,168.71,168.7,60.0]
[1721940201140,27.02,168.77,168.7,60.0]
[1721940201351,5.9252,168.77,168.7,60.0]
[1721940201542,1.48197441,168.78,168.7,60.0]
[1721940201750,28.50178736,168.79,168.7,60.0]
[1721940202062,7.40628736,168.79,168.7,60.0]
[1721940202246,5.9248,168.78,168.7,60.0]
[1721940202961,1.48178105,168.77,168.7,60.0]
[1721940203162,33.5088,168.8,168.7,60.0]
[1721940203163,1.48177714,168.76,168.7,60.0]
[1721940203357,1.48172757,168.79,168.7,60.0]
[1721940204746,7.40632757,168.79,168.7,60.0]
[1721940205266,19.32172757,168.79,168.7,60.0]
[1721940205475,5.9254,168.77,168.7,60.0]
[1721940205655,7.4072654,168.77,168.7,60.0]
[1721940205847,5.9254,168.77,168.7,60.0]
[1721940206466,17.84,168.79,168.7,60.0]
[1721940206467,1.48186274,168.76,168.7,60.0]
[1721940207157,5.9259,168.75,168.7,60.0]
[1721940207362,1.48192839,168.74,168.7,60.0]
[1721940207657,1.48192839,168.73,168.7,60.0]
[1721940208177,5.9273,168.71,168.7,60.0]
[1721940208358,23.7673,168.71,168.7,60.0]
[1721940209764,5.9273,168.71,168.7,60.0]
[1721940209949,1.48212595,168.72,168.7,60.0]
[1721940210150,6.22827064,168.73,168.7,60.0]
[1721940210351,7.71035044,168.73,168.7,60.0]
[1721940210547,5.9273,168.71,168.7,60.0]
[1721940210752,50.9273,168.71,168.7,60.0]
[1721940210974,17.84,168.68,168.49,6.2562]
[1721940211151,380.5,168.7,168.49,6.2562]
[1721940211152,17.84,168.61,168.49,6.2562]
[1721940211475,7.41494122,168.6,168.49,6.2562]
[1721940211774,5.9316,168.59,168.49,6.2562]
[1721940211946,1.48343112,168.58,168.49,6.2562]
[1721940212149,1.48342935,168.57,168.49,6.2562]
[1721940212972,7.41572935,168.57,168.49,6.2562]
[1721940213270,5.9323,168.57,168.49,6.2562]
[1721940213865,5.9319,168.58,168.49,6.2562]
[1721940214065,1.48356561,168.57,168.49,6.2562]
[1721940214655,7.41586561,168.57,168.49,6.2562]
[1721940215169,17.84,168.61,168.49,6.2562]
[1721940215349,5.9322,168.58,168.49,6.2562]
[1721940215556,1.48349235,168.57,168.49,6.2562]
[1721940215955,5.9312,168.6,168.49,6.2562]
[1721940216171,7.41458229,168.6,168.49,6.2562]
[1721940216371,5.9315,168.59,168.49,6.2562]
[1721940217569,7.4152821,168.58,168.49,6.2562]
[1721940217771,1.48338192,168.62,168.49,6.2562]
[1721940218078,1.48338192,168.62,168.49,7.44290553]
[1721940218260,7.41408192,168.62,168.5,20.0]
[1721940218773,5.9309,168.61,168.5,20.0]
[1721940218954,5.9315,168.59,168.5,20.0]
[1721940219276,1.48338243,168.58,168.5,20.0]
[1721940219476,1.48338152,168.57,168.5,20.0]
[1721940221369,1.48337634,168.58,168.5,20.0]
[1721940221573,7.41387634,168.62,168.5,20.0]
[1721940221777,5.9305,168.62,168.5,20.0]
[1721940222076,5.9314,168.6,168.5,20.0]
[1721940222262,1.48325893,168.59,168.5,20.0]
[1721940222858,5.9311,168.61,168.5,20.0]
[1721940223053,1.48324844,168.6,168.5,20.0]
[1721940223565,7.41474844,168.6,168.5,20.0]
[1721940223959,5.931,168.61,168.5,20.0]
[1721940224277,5.9309,168.61,168.5,20.0]
[1721940224481,1.4832386,168.6,168.5,20.0]
[1721940225382,7.4144386,168.6,168.5,20.0]
[1721940225674,5.9312,168.6,168.5,20.0]
[1721940225875,7.4144421,168.6,168.5,20.0]
[1721940226078,6.52425123,168.67,168.54,30.47]
[1721940226266,0.3177257,168.67,168.56,6.133]
[1721940226467,5.9283,168.68,168.57,66.18605753]
[1721940226686,5.9293,168.66,168.57,20.0]
[1721940226877,1.48278966,168.65,168.57,20.0]
[1721940227079,1.48278966,168.64,168.57,20.0]
[1721940227388,1.48282654,168.69,168.57,20.0]
[1721940227884,5.9291,168.66,168.57,20.0]
[1721940228181,1.48279055,168.65,168.57,20.0]
[1721940228388,1.48282537,168.64,168.57,20.0]
[1721940228684,5.9291,168.66,168.57,20.0]
[1721940228867,1.48279838,168.65,168.57,20.0]
[1721940229473,17.84,168.61,168.48,22.1744]
[1721940230077,5.9334,168.54,168.48,22.1744]
[1721940230266,5.9323,168.57,168.48,22.1744]
[1721940230466,1.48356935,168.56,168.48,22.1744]
[1721940233789,1.48350661,168.57,168.48,22.1744]
[1721940234777,6.23247064,168.61,168.49,1.18672212]
[1721940235075,1.48340265,168.63,168.5,27.08]
[1721940235383,5.9309,168.61,168.5,27.08]
[1721940235566,5.9305,168.62,168.5,27.08]
[1721940235761,5.9305,168.62,168.51,20.0]
[1721940239191,5.9305,168.62,168.51,21.18648791]
[1721940240390,5.9309,168.61,168.51,21.18648791]
[1721940240592,1.48311982,168.6,168.51,20.0]
[1721940240892,27.08,168.56,168.41,1.18671254]
[1721940241098,5.9361,168.46,168.38,16.3254]
[1721940241265,1.48445029,168.45,168.38,16.3254]
[1721940241601,17.84,168.5,168.38,16.3254]
[1721940241894,5.9358,168.47,168.38,16.3254]
[1721940242091,1.48436456,168.49,168.38,16.3254]
[1721940242396,5.9346,168.51,168.39,28.26731854]
[1721940243193,1.48414817,168.52,168.42,27.08]
[1721940243386,256.40137064,168.55,168.45,27.08]
[1721940243599,380.5,168.56,168.45,27.08]
[1721940243600,380.5,168.56,168.46,36.0856]
[1721940243899,1.48365822,168.55,168.46,36.0856]
[1721940244681,386.4326,168.56,168.46,36.0856]
[1721940244880,380.5,168.56,168.46,36.0856]
[1721940245193,5.9318,168.59,168.46,36.0856]
[1721940245401,5.9318,168.59,168.47,45.0]
[1721940245594,5.9318,168.59,168.48,20.0]
[1721940246398,7.41456523,168.6,168.48,20.0]
[1721940246586,5.9312,168.6,168.49,1.18667207]
[1721940247102,1.48331687,168.6,168.48,20.0]
[1721940247477,5.9309,168.61,168.5,6.0911]
[1721940247873,273.94,168.63,168.5,6.0911]
[1721940247874,7.41440815,168.6,168.5,6.0911]
[1721940249105,5.9312,168.6,168.5,6.0911]
[1721940249488,5.9308,168.62,168.51,21.18659629]
[1721940249693,6.5203,168.67,168.51,21.18659629]
[1721940249908,1.48293348,168.67,168.52,61.92824673]
[1721940250073,1.48293348,168.67,168.54,36.8434]
[1721940250278,5.9284,168.68,168.55,66.18607899]
[1721940250480,1.48258077,168.67,168.55,66.18607899]
[1721940250779,1.48256571,168.69,168.55,66.18607899]
[1721940251091,5.9283,168.68,168.56,15.7419]
[1721940251297,5.9283,168.68,168.57,65.0]
[1721940252006,5.9287,168.68,168.57,65.0]
[1721940252601,5.9281,168.69,168.57,65.0]
[1721940253385,1.48256373,168.68,168.57,65.0]
[1721940253592,5.9281,168.69,168.57,65.0]
[1721940253788,7.41066373,168.69,168.57,65.0]
[1721940254793,1.48256378,168.68,168.57,65.0]
[1721940254987,5.9274,168.71,168.59,6.4235]
[1721940255187,17.84,168.73,168.6,21.18584617]
[1721940255390,17.84,168.71,168.6,21.18584617]
[1721940255594,25.2503204,168.7,168.6,20.0]
[1721940256104,25.2503204,168.7,168.57,45.0]
[1721940256105,5.9316,168.59,168.52,16.4217]
[1721940256284,48.32,168.66,168.5,6.4235]
[1721940256285,1.48330076,168.58,168.5,6.4235]
[1721940256483,5.9326,168.56,168.5,6.4235]
[1721940256794,17.84,168.59,168.5,6.4235]
[1721940256982,1.48335049,168.58,168.5,6.4235]
[1721940257488,1.48325559,168.57,168.5,6.4235]
[1721940257685,17.84,168.6,168.5,6.4235]
[1721940257686,1.48338872,168.59,168.5,6.4235]
[1721940257991,7.41518872,168.59,168.5,6.4235]
[1721940258190,23.7721,168.58,168.5,6.4235]
[1721940258409,1.48352866,168.57,168.5,6.4235]
[1721940258712,7.41572866,168.57,168.5,6.4235]
[1721940259090,5.933,168.55,168.48,15.7039]
[1721940259293,5.933,168.55,168.45,6.2355]
[1721940259294,1.48382614,168.54,168.45,6.2355]
[1721940260494,25.25712614,168.54,168.45,6.2355]
[1721940260907,23.7733,168.54,168.45,6.2355]
[1721940261298,17.84,168.54,168.45,6.2355]
[1721940261500,1.48382352,168.54,168.45,6.2355]
[1721940261897,1.48382352,168.54,168.46,20.0]
[1721940263017,19.32370616,168.57,168.46,20.0]
[1721940264096,1.48370616,168.57,168.46,20.0]
[1721940264499,25.25600616,168.57,168.46,20.0]
[1721940264798,5.9326,168.56,168.46,20.0]
[1721940265195,1.48366631,168.55,168.46,20.0]
[1721940266003,1.48366607,168.54,168.46,20.0]
[1721940270520,23.7741,168.52,168.45,6.2355]
[1721940270731,1.48410268,168.51,168.45,6.2355]
[1721940270899,17.84,168.48,168.33,22.77607385]
[1721940271099,1.48446691,168.47,168.33,22.77607385]
[1721940271404,19.32446691,168.47,168.34,6.20800265]
[1721940271713,1.48446691,168.47,168.33,22.77627444]
[1721940271901,1.48446691,168.47,168.33,28.98399274]
[1721940272098,1.48441147,168.46,168.33,28.98399274]
[1721940272324,1.48449173,168.45,168.33,28.98399274]
[1721940272525,1.48449011,168.49,168.34,20.0]
[1721940272719,17.84,168.5,168.35,1.18759118]
[1721940272720,1.48448897,168.48,168.35,1.18759118]
[1721940272919,0.30958916,168.51,168.36,1.18736288]
[1721940273123,0.30958916,168.51,168.37,21.5888]
[1721940273433,19.3242036,168.52,168.38,66.18726009]
[1721940273931,380.5,168.58,168.39,30.48]
[1721940274123,17.84,168.51,168.37,21.5888]
[1721940274312,380.5,168.58,168.37,21.5888]
[1721940274313,23.7753,168.49,168.37,21.5888]
[1721940274509,19.32445456,168.48,168.37,21.5888]
[1721940274925,25.26015456,168.48,168.37,21.5888]
[1721940275424,5.9362,168.46,168.37,21.5888]
[1721940275624,1.48470219,168.45,168.37,21.5888]
[1721940275927,19.32470219,168.45,168.37,21.5888]
[1721940276317,1.48470219,168.45,168.37,21.5888]
[1721940277431,1.48455793,168.44,168.37,21.5888]
[1721940278331,1.48456783,168.43,168.37,21.5888]
[1721940278508,1.48456783,168.42,168.37,21.5888]
[1721940278915,1.48456768,168.46,168.37,21.5888]
[1721940279209,1.48456771,168.45,168.37,21.5888]
[1721940279531,19.32456771,168.45,168.37,21.5888]
[1721940279908,1.48456771,168.45,168.37,21.5888]
[1721940280230,1.48456771,168.45,168.37,15.184]
[1721940281008,1.48443306,168.48,168.37,15.184]
[1721940281240,1.48443306,168.48,168.38,20.0]
[1721940281757,23.13796682,168.5,168.38,20.0]
[1721940282032,29.07276682,168.5,168.38,20.0]
[1721940282410,23.13796682,168.5,168.38,20.0]
[1721940282814,5.9354,168.48,168.38,20.0]
[1721940283119,19.32441681,168.47,168.38,20.0]
[1721940283306,25.26021681,168.47,168.38,20.0]
[1721940283712,19.32441681,168.47,168.38,20.0]
[1721940283934,1.48445003,168.46,168.38,20.0]
[1721940284140,1.48445327,168.45,168.38,20.0]
[1721940284637,1.48438907,168.48,168.38,20.0]
[1721940285434,1.48438478,168.52,168.39,28.30750782]
[1721940285652,262.3878,168.54,168.42,27.12]
[1721940285850,6.2878,168.54,168.43,20.0]
[1721940286056,7.77168302,168.54,168.43,20.0]
[1721940286529,13.70498302,168.54,168.43,20.0]
[1721940287673,31.54498302,168.54,168.43,20.0]
[1721940288426,5.9337,168.53,168.43,20.0]
[1721940288939,31.54498302,168.54,168.43,20.0]
[1721940289329,13.70498302,168.54,168.43,20.0]
[1721940289547,31.54498302,168.54,168.43,20.0]
[1721940289774,7.77168302,168.54,168.43,20.0]
[1721940290058,41.9493,168.59,168.44,45.0]
[1721940290059,5.9327,168.56,168.44,45.0]
[1721940290354,5.9327,168.56,168.45,21.18697319]
[1721940290563,256.1,168.61,168.51,27.12]
[1721940290760,5.9305,168.62,168.52,20.0]
[1721940290927,7.41394824,168.61,168.52,20.0]
[1721940291124,1.48314875,168.6,168.52,20.0]
[1721940291342,7.41444875,168.6,168.52,20.0]
[1721940291529,27.615,168.63,168.52,20.0]
[1721940291530,23.7708,168.61,168.52,20.0]
[1721940291734,7.4144183,168.6,168.52,20.0]
[1721940292160,7.41401748,168.62,168.52,20.0]
[1721940292654,22.98029745,168.63,168.52,20.0]
[1721940293032,25.44109745,168.63,168.52,20.0]
[1721940293355,17.84,168.63,168.53,72.12]
[1721940293535,17.84,168.63,168.54,20.0]
[1721940295856,7.41277843,168.64,168.54,20.0]
[1721940296064,23.7698,168.64,168.54,20.0]
[1721940296352,1.48297574,168.63,168.54,20.0]
[1721940297747,39.32289684,168.65,168.55,15.3658]
[1721940298852,17.84,168.65,168.56,20.0]
[1721940299247,23.7694,168.65,168.56,20.0]
[1721940299442,45.266,168.67,168.56,20.0]
[1721940299653,1.48267684,168.68,168.56,47.12]
[1721940300041,5.9277,168.7,168.56,47.12]
[1721940300245,7.41024317,168.7,168.57,46.18611914]
[1721940300441,17.84,168.68,168.57,45.0]
[1721940300645,5.9284,168.68,168.58,20.0]
[1721940300955,23.7689,168.67,168.56,47.12]
[1721940301142,19.32270753,168.67,168.56,20.0]
[1721940301543,5.9291,168.66,168.56,20.0]
[1721940301746,5.9288,168.67,168.57,1.18616868]
[1721940302051,17.84,168.62,168.55,15.3658]
[1721940302253,5.9305,168.62,168.55,15.3658]
[1721940302456,1.48316012,168.61,168.51,48.6947]
[1721940302657,7.41471151,168.6,168.51,48.6947]
[1721940302871,5.9309,168.61,168.51,48.6947]
[1721940303170,7.41373061,168.62,168.51,48.6947]
[1721940303353,50.9309,168.61,168.51,48.6947]
[1721940303746,5.9305,168.62,168.52,20.0]
[1721940303944,5.9325,168.57,168.48,2.49688558]
[1721940304178,1.4836398,168.56,168.46,27.12]
[1721940304463,5.9341,168.52,168.44,16.2648]
[1721940304774,46.4836398,168.56,168.4,2.48763298]
[1721940304775,1.48402199,168.51,168.4,2.48763298]
[1721940304976,1.48402199,168.51,168.32,6.5119]
[1721940304977,1.48402199,168.51,168.39,27.12]
[1721940305263,1.48425506,168.5,168.39,27.12]
[1721940305443,1.48411972,168.49,168.39,27.12]
[1721940305641,1.48431003,168.48,168.39,27.12]
[1721940306047,17.84,168.53,168.39,27.12]
[1721940306250,17.84,168.51,168.39,27.12]
[1721940306460,1.48430961,168.5,168.39,27.12]
[1721940306649,64.32430961,168.5,168.39,27.12]
[1721940307658,70.25900961,168.5,168.39,27.12]
[1721940307864,1.48419493,168.49,168.39,27.12]
[1721940308062,1.48419593,168.51,168.39,27.12]
[1721940308741,1.48419593,168.51,168.4,20.0]
[1721940308945,1.48419593,168.51,168.4,65.0]
[1721940309969,17.84,168.5,168.4,20.0]
[1721940310147,1.48419805,168.49,168.4,20.0]
[1721940310347,1.48419568,168.48,168.4,20.0]
[1721940310766,1.48419568,168.48,168.36,6.20983939]
[1721940310767,1.48419568,168.48,168.37,20.0]
[1721940310955,17.84,168.51,168.4,27.12]
[1721940311160,19.32416132,168.51,168.41,20.0]
[1721940311478,19.32408938,168.51,168.41,20.0]
[1721940312249,1.48408938,168.51,168.41,20.0]
[1721940312768,45.0,168.51,168.41,20.0]
[1721940313074,1.48411619,168.51,168.41,20.0]
[1721940313249,17.84,168.5,168.41,20.0]
[1721940313449,19.32423294,168.5,168.41,20.0]
[1721940313674,62.84,168.49,168.41,20.0]